bitfinex-derivatives/quotes_ETHF0:USTF0_20241020
["timestamp","ask_amount","ask_price","bid_price","bid_amount"]
[1729436808147,44.8948,2697.0,2696.3,0.4561]
[1729436808354,0.37088,2696.7,2696.6,3.708]
[1729436808658,45.26563,2697.0,2696.9,3.708]
[1729436809550,44.0078,2697.0,2696.9,3.708]
[1729436809756,44.0078,2697.0,2696.9,4.07885]
[1729436809950,3.2078,2697.0,2696.9,4.07885]
[1729436810854,3.2078,2697.4,2696.9,3.708]
[1729436811056,3.2078,2697.4,2697.3,4.07879]
[1729436811658,0.886,2697.7,2697.4,0.37077]
[1729436811852,0.886,2697.7,2697.0,3.6524]
[1729436812159,1.37784,2698.3,2697.0,3.6524]
[1729436812160,3.2078,2699.0,2697.6,3.2078]
[1729436812359,0.37054,2699.2,2698.6,3.57841]
[1729436812656,0.37054,2699.2,2697.7,1.3346]
[1729436812657,0.18766979,2699.4,2698.9,3.2078]
[1729436812855,0.3705,2699.5,2698.9,3.57837]
[1729436813049,40.8,2699.4,2698.9,3.2078]
[1729436813251,40.8,2699.4,2699.2,0.37053]
[1729436813457,40.8,2699.4,2699.2,3.2078]
[1729436814465,0.457,2700.1,2699.2,3.2078]
[1729436814466,0.886,2699.9,2699.3,3.7048]
[1729436814762,0.55527182,2700.0,2699.4,0.3705]
[1729436814960,40.8,2699.9,2699.5,3.2078]
[1729436815357,40.8,2699.9,2699.2,3.2078]
[1729436815358,0.37047,2699.7,2699.2,3.2078]
[1729436815662,0.37045,2699.8,2699.2,3.57833]
[1729436815847,0.37046,2699.8,2699.2,3.57832]
[1729436816053,0.37049,2699.5,2699.2,3.2078]
[1729436816455,3.2078,2699.5,2698.7,0.4605]
[1729436816662,0.886,2699.4,2698.7,0.4605]
[1729436816854,0.886,2699.4,2698.3,3.2078]
[1729436817164,3.2078,2699.2,2698.0,3.2078]
[1729436817458,3.2078,2699.2,2698.4,0.37063]
[1729436817660,0.4518,2699.1,2698.4,0.37063]
[1729436817865,3.57838,2698.9,2698.3,0.37064]
[1729436818057,0.3706,2698.8,2698.2,0.37066]
[1729436818253,0.3706,2698.8,2697.7,5.88678]
[1729436818254,3.2078,2698.9,2697.7,5.88678]
[1729436818556,3.2078,2698.6,2698.1,0.37068]
[1729436818749,0.4481,2698.7,2697.8,0.37072]
[1729436819059,0.4481,2698.7,2697.7,3.2078]
[1729436819461,0.4481,2698.7,2698.4,0.37064]
[1729436819761,0.886,2698.9,2698.0,3.2078]
[1729436819975,4.0938,2699.0,2698.7,0.37059]
[1729436820159,0.4518,2699.1,2698.7,0.37059]
[1729436820459,0.4518,2699.1,2698.1,0.92]
[1729436820460,40.8,2699.1,2698.9,3.2078]
[1729436820668,3.2078,2699.7,2699.0,4.1466]
[1729436820855,3.2078,2699.7,2699.0,0.4418]
[1729436821059,40.8,2699.6,2699.1,0.37054]
[1729436821256,0.37051,2699.4,2699.0,0.4418]
[1729436821563,0.3705,2699.5,2699.0,0.4418]
[1729436822268,40.8,2699.6,2699.0,0.4418]
[1729436822460,40.8,2699.6,2699.3,0.37051]
[1729436822657,40.8,2699.6,2699.3,0.37052]
[1729436823373,40.8,2699.6,2699.0,0.4418]
[1729436823571,40.8,2699.6,2699.3,0.37051]
[1729436823868,40.8,2699.6,2699.5,0.37049]
[1729436824066,40.8,2699.6,2699.4,0.3705]
[1729436824268,3.2078,2699.8,2699.5,0.0008]
[1729436824469,0.4869,2700.0,2699.7,0.37046]
[1729436824671,40.8,2699.9,2699.7,0.37046]
[1729436824871,4.0938,2700.3,2699.9,0.37042]
[1729436825065,4.0938,2700.3,2699.9,0.37043]
[1729436825066,3.2078,2700.3,2699.9,0.37043]
[1729436825264,3.2078,2700.3,2699.5,3.2078]
[1729436825265,3.2078,2700.3,2699.6,0.4471]
[1729436825466,40.8,2700.2,2699.9,0.37043]
[1729436825666,40.8,2700.2,2699.6,0.8924]
[1729436825962,40.8,2700.2,2699.7,0.37045]
[1729436825963,0.37039,2700.2,2699.7,0.37045]
[1729436826181,0.3704,2700.2,2699.7,0.37046]
[1729436826464,41.2566,2700.2,2699.9,0.37043]
[1729436827062,41.2566,2700.2,2699.6,0.8924]
[1729436827063,40.8,2700.2,2700.0,0.37041]
[1729436827264,40.8,2700.2,2699.7,3.2078]
[1729436827265,40.8,2700.2,2700.1,0.37041]
[1729436827573,0.4566,2700.7,2700.0,3.2078]
[1729436827766,0.4566,2700.7,2700.3,0.37037]
[1729436827969,40.8,2700.6,2700.3,0.37037]
[1729436828267,3.2078,2701.0,2700.0,3.2078]
[1729436828460,0.37031,2700.8,2700.3,3.57817]
[1729436828658,3.2078,2701.0,2700.0,3.2078]
[1729436828659,4.1118,2701.0,2700.0,3.2078]
[1729436828871,0.37037,2700.4,2700.0,3.2078]
[1729436829166,3.2078,2700.7,2700.0,3.2078]
[1729436829566,0.37034,2700.6,2700.1,0.3704]
[1729436829866,3.57813,2700.7,2700.2,0.37039]
[1729436830076,4.05993,2700.7,2700.2,0.37039]
[1729436830275,3.6896,2700.7,2700.3,0.37038]
[1729436830459,3.6896,2700.7,2700.3,0.37037]
[1729436831869,0.4818,2700.7,2700.3,0.37037]
[1729436832365,0.4818,2700.7,2700.4,0.37036]
[1729436832563,0.4818,2700.7,2700.5,0.37035]
[1729436832869,1.27429,2701.0,2700.5,0.37035]
[1729436833071,40.8,2700.9,2700.3,3.2078]
[1729436833265,40.8,2700.9,2700.6,0.37034]
[1729436833663,40.8,2700.9,2700.3,3.2078]
[1729436833879,40.8,2700.9,2700.7,0.37031]
[1729436834172,40.8,2700.9,2700.8,0.37031]
[1729436834375,0.4616,2701.3,2700.6,3.2078]
[1729436834570,12.4768,2701.7,2700.9,4.13354]
[1729436834571,3.2078,2701.7,2700.9,4.13354]
[1729436834769,3.2078,2701.7,2701.0,0.4399]
[1729436835177,0.37021,2701.6,2701.1,0.37026]
[1729436835376,0.3702,2701.6,2701.1,0.37026]
[1729436835673,3.2078,2701.7,2701.0,0.81018]
[1729436835872,0.37022,2701.5,2701.1,0.37027]
[1729436836368,3.2078,2701.7,2701.0,0.4399]
[1729436836672,3.578,2701.7,2701.0,0.4399]
[1729436836975,3.2078,2701.7,2701.0,0.4399]
[1729436837175,0.37018,2701.8,2701.3,0.37023]
[1729436837371,40.8,2701.9,2701.2,3.2078]
[1729436837372,41.17017,2701.9,2701.2,3.2078]
[1729436837672,41.17017,2701.9,2701.5,0.37021]
[1729436837974,41.17017,2701.9,2701.6,0.37019]
[1729436837975,40.8,2701.9,2701.6,0.37019]
[1729436838176,40.8,2701.9,2701.2,3.2078]
[1729436838472,41.17017,2701.9,2701.5,0.37021]
[1729436838671,40.8,2701.9,2701.5,0.37021]
[1729436839074,44.0078,2701.9,2701.5,0.37021]
[1729436839272,44.0078,2701.9,2701.2,3.2078]
[1729436839481,44.0078,2701.9,2701.6,0.37019]
[1729436839780,40.8,2701.9,2701.6,0.3702]
[1729436840680,40.8,2701.9,2701.3,0.4422]
[1729436840878,44.0078,2701.9,2701.7,0.37019]
[1729436841669,40.8,2701.9,2701.5,3.2078]
[1729436841976,40.8,2701.9,2701.7,0.37019]
[1729436842367,40.8,2701.9,2701.5,3.2078]
[1729436842772,0.37019,2701.8,2701.5,3.2078]
[1729436842973,44.37797,2701.9,2701.5,3.2078]
[1729436843177,44.0078,2701.9,2701.5,3.2078]
[1729436843474,40.8,2701.9,2701.2,3.2078]
[1729436843667,40.8,2701.9,2701.3,0.92561]
[1729436843871,40.8,2701.9,2701.7,0.37018]
[1729436844279,40.8,2701.9,2701.2,3.2078]
[1729436844479,44.37796,2701.9,2701.5,0.37021]
[1729436844679,44.0078,2701.9,2701.4,0.37022]
[1729436844980,44.37797,2701.9,2701.5,0.37021]
[1729436845866,0.37019,2701.8,2701.3,0.37023]
[1729436846067,44.0078,2701.9,2701.0,0.4399]
[1729436846276,3.2078,2701.6,2701.2,0.37026]
[1729436846478,0.85512,2701.5,2701.1,0.37027]
[1729436846672,0.85512,2701.5,2701.0,0.4399]
[1729436846673,0.4849,2701.5,2701.0,0.4399]
[1729436847082,0.4849,2701.5,2701.4,0.37023]
[1729436847288,40.8,2701.9,2701.6,0.3702]
[1729436847468,40.8,2701.9,2701.6,0.37019]
[1729436847674,40.8,2701.9,2701.7,0.37018]
[1729436848381,40.8,2701.9,2701.4,0.4603]
[1729436848680,4.65393022,2702.0,2701.7,0.37018]
[1729436849081,45.45393022,2702.0,2701.7,0.37018]
[1729436849281,45.45393022,2702.0,2701.4,0.4603]
[1729436849473,45.82408022,2702.0,2701.4,0.4603]
[1729436849668,45.82408022,2702.0,2701.6,0.37019]
[1729436850380,45.82408022,2702.0,2701.4,0.4603]
[1729436850381,45.45393022,2702.0,2701.7,0.37019]
[1729436850679,45.82409022,2702.0,2701.7,0.37019]
[1729436851481,45.45393022,2702.0,2701.7,0.37019]
[1729436852181,42.24613022,2702.0,2701.4,0.4603]
[1729436852377,42.24613022,2702.0,2701.7,0.37018]
[1729436852782,42.61628022,2702.0,2701.7,0.37019]
[1729436852982,42.24613022,2702.0,2701.7,0.37019]
[1729436853788,42.24613022,2702.0,2701.4,0.4603]
[1729436853789,42.24613022,2702.0,2701.8,0.37017]
[1729436853976,42.24613022,2702.0,2701.7,0.37018]
[1729436854183,42.24613022,2702.0,2701.4,0.4603]
[1729436854488,42.24613022,2702.0,2701.9,0.37016]
[1729436854881,42.24613022,2702.0,2701.4,1.38586]
[1729436855086,42.24613022,2702.0,2701.4,0.4603]
[1729436855283,0.89050439,2702.0,2701.9,0.37016]
[1729436855777,0.89050439,2702.0,2701.9,4.07096]
[1729436856380,0.89050439,2702.0,2701.9,0.37016]
[1729436856580,0.89050439,2702.0,2701.7,0.4226]
[1729436856784,0.89050439,2702.0,2701.7,0.37018]
[1729436856986,1.26065439,2702.0,2701.7,0.37018]
[1729436857184,1.26065439,2702.0,2701.5,3.2078]
[1729436857185,1.26065439,2702.0,2701.6,0.37019]
[1729436857492,1.26065439,2702.0,2701.7,0.37018]
[1729436857690,1.26065439,2702.0,2701.5,3.2078]
[1729436857691,0.89050439,2702.0,2701.5,3.2078]
[1729436858190,0.89050439,2702.0,2701.9,0.37016]
[1729436858378,0.9462,2702.3,2701.8,3.2078]
[1729436858578,0.9462,2702.3,2701.9,0.4611]
[1729436858784,0.9462,2702.3,2701.8,3.2078]
[1729436858785,0.37014,2702.1,2701.8,0.37017]
[1729436858979,0.9462,2702.3,2701.4,1.38588]
[1729436858980,0.37016,2702.0,2701.7,0.37018]
[1729436859440,40.8,2702.2,2701.7,0.37018]
[1729436859682,4.154,2702.3,2701.4,3.6681]
[1729436859889,0.37014,2702.1,2701.8,0.37017]
[1729436860386,40.8,2702.0,2701.9,0.37016]
[1729436860589,0.37016,2702.0,2701.4,3.6681]
[1729436860787,0.37016,2702.0,2701.8,0.37017]
[1729436860985,4.154,2702.3,2701.9,0.37016]
[1729436861296,0.37014,2702.1,2701.9,0.37016]
[1729436861484,4.154,2702.3,2701.4,4.77573039]
[1729436861684,0.37012,2702.2,2702.0,0.0925]
[1729436861888,0.37012,2702.2,2702.0,0.46264]
[1729436862690,4.154,2702.3,2702.2,0.37012]
[1729436863384,4.154,2702.3,2702.0,0.0925]
[1729436863781,4.154,2702.3,2702.2,0.37012]
[1729436864183,0.9462,2702.3,2702.2,0.37012]
[1729436864785,0.4849,2702.3,2702.2,0.37012]
[1729436867188,40.8,2702.6,2702.5,0.37008]
[1729436867585,0.4526,2702.7,2702.6,0.37006]
[1729436868895,0.4526,2702.7,2702.5,0.37007]
[1729436869290,0.4526,2702.7,2702.4,0.37008]
[1729436869496,0.4526,2702.7,2702.5,0.37007]
[1729436870197,0.4526,2702.7,2702.0,6.01326]
[1729436870397,0.4526,2702.7,2702.5,0.37007]
[1729436870786,0.82266,2702.7,2702.0,6.01326]
[1729436870993,0.82266,2702.7,2702.4,0.37008]
[1729436871299,0.82266,2702.7,2702.5,0.37008]
[1729436871495,0.4526,2702.7,2702.5,0.37008]
[1729436871690,0.4526,2702.7,2702.0,5.0879]
[1729436871897,0.4526,2702.7,2702.6,0.37006]
[1729436872303,0.4537,2702.8,2702.3,4.13306]
[1729436872508,0.4537,2702.8,2702.7,0.37005]
[1729436874297,0.4537,2702.8,2702.4,0.4593]
[1729436874604,0.37006,2702.7,2702.4,0.37008]
[1729436874899,0.37007,2702.6,2702.4,0.37008]
[1729436875293,0.84766,2702.7,2702.0,1.8801]
[1729436875699,0.84766,2702.7,2702.5,0.37007]
[1729436876696,0.4537,2702.8,2702.7,0.37005]
[1729436878004,0.4537,2702.8,2702.4,0.4731]
[1729436878196,0.82374,2702.8,2702.5,0.37007]
[1729436878390,0.37006,2702.7,2702.4,0.37009]
[1729436878596,0.37006,2702.7,2702.1,0.4731]
[1729436879100,0.37006,2702.7,2702.5,0.37007]
[1729436879409,0.82375,2702.8,2702.5,0.37007]
[1729436879699,0.4537,2702.8,2702.6,0.37005]
[1729436879894,0.4537,2702.8,2702.2,3.2078]
[1729436880094,0.4537,2702.8,2702.7,0.37005]
[1729436880905,0.4789,2703.0,2702.9,0.37002]
[1729436881105,2.90747846,2703.5,2703.3,0.36997]
[1729436881106,6.08376718,2703.4,2703.3,0.36997]
[1729436881404,3.6684,2703.4,2702.9,0.37002]
[1729436881594,3.6684,2703.4,2703.3,0.36997]
[1729436882304,3.2078,2703.4,2703.3,0.36997]
[1729436882503,3.2078,2703.4,2703.3,0.46237]
[1729436883095,3.2078,2703.4,2703.3,4.16157]
[1729436883394,0.4568,2703.7,2703.3,3.7916]
[1729436883603,0.4568,2703.7,2703.6,0.36993]
[1729436884504,3.2078,2704.1,2703.6,3.6984]
[1729436884707,3.2078,2704.1,2703.9,0.36988]
[1729436885103,3.2078,2704.1,2704.0,0.36987]
[1729436885397,0.4568,2704.4,2704.3,0.36983]
[1729436886316,4.1544,2704.4,2703.4,3.2078]
[1729436886604,4.1544,2704.4,2703.5,0.36994]
[1729436886605,0.36989,2703.9,2703.5,0.36994]
[1729436886808,0.8946,2703.8,2703.5,0.36994]
[1729436887006,0.8946,2703.8,2703.4,3.2078]
[1729436887302,0.8946,2703.8,2703.5,0.36993]
[1729436887519,0.8946,2703.8,2703.4,3.2078]
[1729436887520,0.8946,2703.8,2703.6,0.36993]
[1729436887802,0.8946,2703.8,2703.4,3.2078]
[1729436888501,1.26451,2703.8,2703.5,0.36994]
[1729436889508,0.8946,2703.8,2703.4,3.2078]
[1729436889703,0.8946,2703.8,2703.6,0.36992]
[1729436890307,0.8946,2703.8,2703.7,0.36991]
[1729436890800,0.36992,2703.7,2703.4,3.57775]
[1729436890995,0.36992,2703.7,2703.5,0.36994]
[1729436891309,0.8946,2703.8,2703.4,3.2078]
[1729436891514,0.36994,2703.6,2703.4,3.2078]
[1729436891804,0.8946,2703.8,2703.3,0.0924]
[1729436892009,0.36996,2703.4,2703.3,0.0924]
[1729436898400,3.2078,2703.6,2703.3,0.0924]
[1729436898611,0.8508,2703.6,2703.3,0.0924]
[1729436898814,0.8508,2703.6,2703.5,0.36994]
[1729436899407,0.8508,2703.6,2703.4,0.4169]
[1729436899605,0.8508,2703.6,2703.3,0.0924]
[1729436899810,0.78485,2703.5,2703.3,0.0924]
[1729436900113,0.36996,2703.4,2703.3,0.0924]
[1729436905507,0.78485,2703.5,2703.3,0.0924]
[1729436905908,0.78485,2703.5,2703.2,0.36998]
[1729436906215,0.36997,2703.3,2703.0,0.37]
[1729436906510,2.83026718,2703.5,2702.9,0.4169]
[1729436906701,0.37,2703.1,2703.0,0.0924]
[1729436906902,0.36999,2703.2,2703.0,0.0924]
[1729436907216,0.37,2703.1,2703.0,0.0924]
[1729436907606,0.36999,2703.2,2703.0,0.0924]
[1729436907815,0.37,2703.1,2703.0,0.0924]
[1729436908006,2.41536718,2703.4,2703.0,0.0924]
[1729436908212,3.5778,2703.1,2702.2,0.37011]
[1729436908409,0.37006,2702.7,2702.3,0.3701]
[1729436909012,0.37006,2702.7,2702.4,0.0925]
[1729436909221,0.37005,2702.7,2702.4,0.46258]
[1729436909719,6.41193185,2702.8,2702.5,0.37008]
[1729436909901,6.04189185,2702.8,2702.4,0.0925]
[1729436910108,2.41199185,2702.9,2702.8,0.37004]
[1729436910307,0.8308,2703.0,2702.7,0.37004]
[1729436910805,0.8308,2703.0,2702.4,3.7149]
[1729436911005,0.4159,2703.0,2702.9,0.37002]
[1729436911217,0.4159,2703.0,2702.8,0.37002]
[1729436911411,0.4159,2703.0,2702.6,0.4133]
[1729436911815,0.4159,2703.0,2702.8,0.37003]
[1729436913209,0.4159,2703.0,2702.7,0.4205]
[1729436913818,0.4159,2703.0,2702.8,0.37003]
[1729436914412,0.4159,2703.0,2702.7,0.4205]
[1729436914615,0.78591,2703.0,2702.7,0.79054]
[1729436914809,0.4159,2703.0,2702.7,0.4205]
[1729436915009,2.78203185,2702.9,2702.5,0.37007]
[1729436915208,2.41199185,2702.9,2702.4,3.67039]
[1729436915408,0.37006,2702.7,2702.4,3.67039]
[1729436915618,0.37007,2702.6,2702.4,3.3003]
[1729436916122,0.37006,2702.7,2702.4,3.67039]
[1729436916426,0.37006,2702.6,2702.4,0.0925]
[1729436917221,6.03719185,2702.8,2702.4,0.0925]
[1729436917422,0.37008,2702.5,2702.4,0.0925]
[1729436917917,0.37008,2702.5,2702.3,0.3701]
[1729436918417,6.03719185,2702.8,2702.2,0.4447]
[1729436918610,5.61979185,2702.5,2702.3,0.0925]
[1729436918931,0.77449,2702.4,2702.3,0.0925]
[1729436919216,3.18648185,2702.4,2702.3,0.0925]
[1729436919407,4.1052,2702.4,2702.0,0.77884]
[1729436919611,0.406,2702.3,2702.0,0.77884]
[1729436919810,0.77612,2702.3,2702.0,0.77884]
[1729436920015,0.77612,2702.3,2702.0,0.87134]
[1729436920419,0.406,2702.3,2702.0,0.5012]
[1729436920618,0.37013,2702.1,2702.0,0.5012]
[1729436921119,0.37013,2702.1,2702.0,0.4087]
[1729436921513,3.7008,2702.1,2701.5,0.4327]
[1729436921721,3.7008,2702.1,2701.5,0.4087]
[1729436921722,0.2777,2701.6,2701.5,0.4087]
[1729436921914,2.41199185,2701.8,2701.5,0.4087]
[1729436922213,0.4331,2701.8,2701.5,0.77891]
[1729436922422,0.80328,2701.8,2701.5,0.77891]
[1729436922618,0.80328,2701.8,2701.5,0.79891]
[1729436923119,0.80328,2701.8,2701.5,0.4287]
[1729436923325,0.80328,2701.8,2701.5,0.79891]
[1729436923326,1.27108,2701.8,2701.5,0.79891]
[1729436923616,0.9009,2701.8,2701.5,0.4287]
[1729436923823,0.37019,2701.7,2701.5,0.4287]
[1729436924117,0.9009,2701.8,2701.5,0.4287]
[1729436924323,0.37019,2701.7,2701.5,0.4287]
[1729436924716,1.27108,2701.8,2701.5,0.4287]
[1729436925423,0.3702,2701.7,2701.5,0.4287]
[1729436925624,0.37019,2701.7,2701.5,0.02]
[1729436925822,0.3702,2701.6,2701.5,0.02]
[1729436926327,0.37021,2701.6,2701.2,0.84835]
[1729436926819,0.9009,2701.8,2701.2,0.84835]
[1729436927025,0.37022,2701.5,2701.2,0.86915]
[1729436927626,0.3702,2701.7,2701.4,0.37023]
[1729436929122,4.1087,2701.8,2701.3,0.37023]
[1729436929321,0.3702,2701.7,2701.3,0.37023]
[1729436929523,0.3702,2701.7,2701.3,0.4855]
[1729436929723,0.3702,2701.7,2701.4,0.37023]
[1729436930216,4.1087,2701.8,2701.2,0.0208]
[1729436930431,0.3702,2701.7,2701.2,0.0208]
[1729436930631,0.3702,2701.7,2701.4,0.37023]
[1729436931122,0.3702,2701.7,2701.2,0.0208]
[1729436931123,0.37024,2701.3,2701.2,0.0208]
[1729436931529,1.3333,2701.4,2700.8,0.4298]
[1729436931716,0.37029,2701.0,2700.7,0.84372]
[1729436932325,0.37029,2701.0,2700.8,0.37031]
[1729436932725,0.8872,2701.2,2700.7,0.4953]
[1729436932726,4.095,2701.2,2700.7,0.4953]
[1729436932927,0.3703,2700.9,2700.7,0.86562]
[1729436933130,0.01001081,2700.8,2700.7,0.86562]
[1729436933527,0.01001081,2700.8,2700.7,0.84372]
[1729436934036,0.01001081,2700.8,2700.7,0.4734]
[1729436934328,0.37032,2700.7,2700.6,0.0224]
[1729436934530,0.87502,2700.7,2700.6,0.0224]
[1729436934834,0.37037,2700.4,2700.3,3.2078]
[1729436935036,0.4482,2700.6,2700.3,3.57818]
[1729436935332,0.01001081,2700.8,2700.4,0.37037]
[1729436935333,0.01001081,2700.5,2700.4,0.37037]
[1729436935523,0.01001081,2700.5,2700.4,0.39317]
[1729436935832,0.01001081,2700.5,2700.4,4.09637]
[1729436935833,0.01334586,2700.5,2700.4,4.09637]
[1729436936039,0.01334586,2700.5,2700.4,4.07357]
[1729436936328,3.5781,2700.9,2700.7,0.35362909]
[1729436936836,3.2078,2700.9,2700.3,3.2306]
[1729436937335,0.37033,2700.7,2700.5,0.37034]
[1729436937732,0.5054,2700.8,2700.3,3.2306]
[1729436937937,0.87571,2700.8,2700.7,0.37032]
[1729436938130,0.5054,2700.8,2700.7,0.37032]
[1729436940735,3.2078,2701.2,2700.3,3.2306]
[1729436941038,0.3703,2700.9,2700.6,0.37033]
[1729436941242,0.37031,2700.8,2700.6,0.37033]
[1729436941742,0.4142,2700.7,2700.6,0.37033]
[1729436942131,0.4142,2700.7,2700.3,3.2306]
[1729436942834,0.4142,2700.7,2700.4,0.37036]
[1729436942835,0.86184,2700.6,2700.4,0.37036]
[1729436943336,0.37037,2700.4,2700.3,0.0228]
[1729436943833,0.37038,2700.4,2700.2,0.37039]
[1729436944032,0.37039,2700.3,2700.1,0.3704]
[1729436944233,4.1102,2700.6,2700.0,0.4867]
[1729436944441,4.1102,2700.6,2700.1,0.0246]
[1729436944632,0.37036,2700.5,2700.3,0.37037]
[1729436944831,41.17036,2700.5,2700.3,0.37037]
[1729436945036,3.6993,2700.6,2700.1,0.0246]
[1729436945240,3.2078,2700.6,2700.5,0.37035]
[1729436946437,3.7155,2700.6,2700.5,0.37035]
[1729436946643,3.7155,2700.6,2700.1,3.2324]
[1729436947240,3.7155,2700.6,2700.5,0.37035]
[1729436947940,3.2078,2700.6,2700.5,0.37035]
[1729436948743,0.4142,2700.7,2700.2,1.35507]
[1729436948938,0.4142,2700.7,2700.6,0.37034]
[1729436952254,0.4142,2700.7,2700.2,3.6369]
[1729436952556,0.4142,2700.7,2700.5,0.37035]
[1729436953654,0.78453,2700.7,2700.4,0.37036]
[1729436954058,0.4142,2700.7,2700.4,0.37036]
[1729436954355,0.78453,2700.7,2700.4,0.37036]
[1729436955862,0.37035,2700.6,2700.1,0.0246]
[1729436956068,0.78453,2700.7,2700.4,0.37036]
[1729436956556,0.4142,2700.7,2700.4,0.37036]
[1729436956753,0.37034,2700.6,2700.3,0.37037]
[1729436956957,0.37034,2700.6,2700.1,0.0246]
[1729436957155,0.37036,2700.5,2700.1,0.0246]
[1729436957357,0.37036,2700.5,2700.3,0.37037]
[1729436957567,0.5582,2700.4,2700.3,0.37037]
[1729436957960,0.5582,2700.4,2700.1,0.0246]
[1729436958157,0.5582,2700.4,2700.2,0.37039]
[1729436958158,0.92858,2700.4,2700.2,0.37039]
[1729436958362,0.37038,2700.3,2700.2,0.37039]
[1729436958563,0.5582,2700.4,2700.1,0.0246]
[1729436958771,0.5582,2700.4,2700.3,0.37038]
[1729436959166,0.92857,2700.4,2700.3,0.37038]
[1729436960667,0.37039,2700.2,2700.1,0.395]
[1729436960866,0.37039,2700.2,2700.1,0.0246]
[1729436961067,0.37041,2700.1,2700.0,0.37041]
[1729436961273,0.90801,2700.1,2700.0,0.37041]
[1729436961576,0.5376,2700.1,2699.6,1.97689]
[1729436961868,0.90802,2700.1,2700.0,0.37042]
[1729436962072,0.90801,2700.1,2700.0,0.37042]
[1729436962273,0.5376,2700.1,2700.0,0.37042]
[1729436964076,0.5582,2700.4,2700.3,0.37038]
[1729436964371,1.0946,2700.4,2700.3,0.37038]
[1729436965673,1.0946,2700.4,2700.2,0.37039]
[1729436965972,1.0946,2700.4,2699.9,0.0293]
[1729436966180,1.0946,2700.4,2700.0,0.37041]
[1729436966471,0.37038,2700.3,2700.0,0.37041]
[1729436967480,3.0946,2700.4,2699.9,0.0293]
[1729436967671,3.0946,2700.4,2699.9,0.39972]
[1729436967672,0.3704,2700.2,2699.9,0.39972]
[1729436967867,0.3704,2700.2,2700.0,0.37042]
[1729436968069,0.3704,2700.2,2699.9,0.39973]
[1729436969780,3.0946,2700.4,2699.9,0.39973]
[1729436969983,0.3704,2700.2,2699.9,0.39973]
[1729436970669,0.3704,2700.2,2700.0,0.37042]
[1729436970868,3.0946,2700.4,2699.9,0.0293]
[1729436971068,0.37042,2700.0,2699.9,0.0293]
[1729436971481,4.60402,2700.0,2699.9,0.0293]
[1729436974172,4.2336,2700.0,2699.9,0.0293]
[1729436974679,2.0,2700.4,2699.9,0.0293]
[1729436974879,2.0,2700.4,2700.0,0.5543]
[1729436974880,0.5541,2700.3,2700.0,0.5543]
[1729436975083,0.5541,2700.3,2700.1,0.3704]
[1729436975475,0.5541,2700.3,2700.2,0.37039]
[1729436977682,2.96609185,2700.3,2700.0,0.5543]
[1729436977876,0.5541,2700.3,2700.2,0.37039]
[1729436978575,2.96609185,2700.3,2700.2,0.37039]
[1729436980488,2.96609185,2700.3,2700.0,0.5543]
[1729436980673,2.96609185,2700.3,2700.2,0.37039]
[1729436981687,2.96609185,2700.3,2700.0,0.5543]
[1729436981688,4.97369185,2700.4,2700.0,0.5543]
[1729436981879,4.97369185,2700.4,2700.3,0.37038]
[1729436982183,2.0,2700.4,2700.3,0.37038]
[1729436982578,4.41199185,2700.4,2700.3,0.37038]
[1729436982779,4.41199185,2700.4,2699.9,0.39973]
[1729436982780,0.3704,2700.2,2699.9,0.39973]
[1729436982978,0.5448,2700.1,2699.9,0.0293]
[1729436983179,0.5415,2700.0,2699.9,0.0293]
[1729436984576,2.96177963,2700.0,2699.9,0.0293]
[1729436985495,3.33219963,2700.0,2699.9,0.0293]
[1729436988276,2.96177963,2700.0,2699.9,0.0293]
[1729436988480,3.33219963,2700.0,2699.9,0.0293]
[1729436988676,2.96177963,2700.0,2699.9,0.0293]
[1729436988879,3.33219963,2700.0,2699.9,0.0293]
[1729436989082,2.96177963,2700.0,2699.9,0.0293]
[1729436990089,0.91192,2700.0,2699.9,0.0293]
[1729436990478,0.37047,2699.7,2699.2,0.37053]
[1729436990684,0.37047,2699.7,2699.3,0.67595476]
[1729436990685,0.5449,2699.6,2699.3,0.67595476]
[1729436990878,0.5449,2699.6,2699.5,0.37049]
[1729436991082,2.41920137,2699.8,2699.6,0.37048]
[1729436991283,6.66017846,2699.9,2699.4,0.0077]
[1729436991478,2.7891307,2699.5,2699.4,0.0077]
[1729436991684,41.17049,2699.5,2699.4,0.0077]
[1729436991886,44.29134043,2699.5,2699.1,0.37054]
[1729436992088,0.555,2699.4,2699.1,0.37054]
[1729436992283,2.97354043,2699.4,2699.0,0.5147]
[1729436992490,0.37053,2699.3,2699.0,0.88525]
[1729436992684,0.37053,2699.3,2699.0,0.523]
[1729436992879,3.57833,2699.3,2699.0,0.523]
[1729436994179,0.37053,2699.2,2699.0,0.523]
[1729436995283,0.37054,2699.1,2699.0,0.0083]
[1729436995789,0.37057,2699.0,2698.6,0.37061]
[1729436996094,1.43707,2699.0,2698.6,0.37061]
[1729436996391,0.5523,2698.9,2698.6,0.0096]
[1729436996692,0.92287,2698.9,2698.6,0.38021]
[1729436997192,0.5523,2698.9,2698.7,0.3706]
[1729436997786,0.5523,2698.9,2698.6,0.38021]
[1729436997986,0.92287,2698.9,2698.6,0.38021]
[1729436998181,0.5523,2698.9,2698.6,0.38021]
[1729436998382,0.5523,2698.9,2698.8,0.37059]
[1729436998693,3.7419,2699.0,2698.8,0.37059]
[1729436998891,3.7419,2699.0,2698.9,0.37057]